bitfinex/quotes_BTCUSD_20240723
["timestamp","ask_amount","ask_price","bid_price","bid_amount"]
[1721748533810,0.011,66755.0,66754.0,0.45041]
[1721748534213,0.011,66755.0,66754.0,0.150803]
[1721748534572,0.011,66755.0,66754.0,0.45041]
[1721748535175,0.011,66755.0,66751.0,0.299619]
[1721748535176,0.008,66752.0,66751.0,0.001]
[1721748535766,0.01580149,66752.0,66751.0,0.001]
[1721748536079,0.15001487,66754.0,66745.0,0.149823]
[1721748536192,0.14701991,66752.0,66741.0,0.002]
[1721748536392,0.14981391,66751.0,66741.0,0.301664]
[1721748536598,0.14701991,66751.0,66741.0,0.002]
[1721748536802,0.14201991,66751.0,66742.0,0.149829]
[1721748537119,0.14201991,66751.0,66743.0,0.149827]
[1721748537319,0.14201991,66751.0,66742.0,0.299658]
[1721748537549,0.172002,66751.0,66745.0,0.149823]
[1721748537751,0.172002,66751.0,66741.0,0.002]
[1721748537752,0.14201991,66751.0,66741.0,0.002]
[1721748537961,0.00299496,66750.0,66741.0,0.002]
[1721748538155,0.14201991,66751.0,66744.0,0.149826]
[1721748538156,0.002794,66751.0,66744.0,0.149826]
[1721748538360,0.006,66751.0,66742.0,0.001]
[1721748538548,0.006,66751.0,66743.0,0.299652]
[1721748538751,0.013,66751.0,66742.0,0.001]
[1721748538956,0.006,66751.0,66750.0,0.149812]
[1721748539204,0.006,66751.0,66742.0,0.001]
[1721748539411,0.14701991,66750.0,66741.0,0.001]
[1721748539606,0.002794,66749.0,66741.0,0.001]
[1721748539823,0.14701991,66748.0,66744.0,0.149825]
[1721748540059,0.14701991,66748.0,66741.0,0.001]
[1721748540060,0.002794,66747.0,66741.0,0.001]
[1721748540234,0.002794,66747.0,66746.0,0.749107]
[1721748540462,0.002794,66760.0,66736.0,0.1]
[1721748540637,0.14701991,66759.0,66753.0,0.149804]
[1721748540837,0.002794,66758.0,66757.0,0.149797]
[1721748541037,1.098796,66743.0,66742.0,0.001]
[1721748541269,0.05,66741.0,66735.0,0.1]
[1721748541560,0.13358942,66743.0,66735.0,0.1]
[1721748541561,0.449532,66736.0,66735.0,0.1]
[1721748541691,0.05,66741.0,66735.0,0.1]
[1721748541887,0.0611,66754.0,66735.0,0.1]
[1721748542139,0.14981391,66752.0,66735.0,0.1]
[1721748542288,0.07348942,66743.0,66735.0,0.1]
[1721748542516,0.00578896,66746.0,66739.0,0.149836]
[1721748542693,0.00578896,66746.0,66735.0,0.1]
[1721748542921,0.00299496,66746.0,66735.0,0.1]
[1721748543140,0.29684391,66745.0,66735.0,0.1]
[1721748543338,0.002794,66743.0,66735.0,0.1]
[1721748543544,0.15001487,66742.0,66735.0,0.1]
[1721748544002,0.002,66741.0,66735.0,0.1]
[1721748544164,0.149838,66739.0,66735.0,0.09995185]
[1721748544387,0.15001487,66738.0,66735.0,0.09995185]
[1721748544618,0.17999996,66738.0,66735.0,0.09995185]
[1721748544806,0.29985387,66738.0,66735.0,0.09995185]
[1721748545036,0.14701991,66738.0,66735.0,0.09995185]
[1721748545839,0.00299496,66737.0,66735.0,0.09995185]
[1721748546083,0.14701991,66736.0,66735.0,0.09995185]
[1721748546847,0.14701991,66736.0,66731.0,0.002]
[1721748547067,0.002794,66731.0,66721.0,0.002]
[1721748547284,0.14701991,66722.0,66721.0,0.002]
[1721748547496,0.60527031,66722.0,66700.0,0.05]
[1721748547700,0.149881,66720.0,66708.0,0.149906]
[1721748548028,0.002794,66718.0,66700.0,0.05]
[1721748548245,0.07348942,66710.0,66701.0,0.07368385]
[1721748548471,0.14701991,66709.0,66708.0,0.149907]
[1721748548681,0.14701991,66709.0,66708.0,0.449721]
[1721748548858,0.14701991,66709.0,66703.0,0.149917]
[1721748548859,0.002794,66708.0,66703.0,0.149917]
[1721748549171,0.002794,66706.0,66694.0,0.05]
[1721748549398,0.002794,66706.0,66693.0,0.05178385]
[1721748549399,0.002794,66706.0,66705.0,0.44974]
[1721748549604,0.00578896,66717.0,66705.0,0.299827]
[1721748549780,0.14701991,66706.0,66700.0,0.05]
[1721748550054,0.149921,66702.0,66688.0,0.20594563]
[1721748550243,1.02915137,66705.0,66688.0,0.07500745]
[1721748550244,0.227449,66689.0,66688.0,0.07500745]
[1721748550476,0.149961,66684.0,66660.0,0.150014]
[1721748550711,0.150018,66659.0,66645.0,0.150048]
[1721748550911,0.150018,66659.0,66628.0,0.44093655]
[1721748550912,0.34246547,66658.0,66657.0,0.59095755]
[1721748551045,0.14701991,66659.0,66636.0,0.0662]
[1721748551240,0.00299496,66658.0,66651.0,0.300068]
[1721748551446,0.15001487,66659.0,66653.0,0.150029]
[1721748551648,0.002794,66658.0,66642.0,0.11230959]
[1721748551847,0.03769041,66661.0,66654.0,0.300054]
[1721748552052,0.14981391,66660.0,66638.0,0.01230959]
[1721748552253,0.14981391,66660.0,66639.0,0.1]
[1721748552536,0.14981391,66660.0,66636.0,0.366335]
[1721748552537,0.002794,66660.0,66643.0,0.1]
[1721748552705,0.03769041,66661.0,66644.0,0.01230959]
[1721748552949,0.01,66659.0,66655.0,0.300049]
[1721748553128,0.01,66659.0,66636.0,0.366333]
[1721748553129,0.05,66639.0,66638.0,0.150064]
[1721748553374,0.05,66646.0,66634.0,0.015192]
[1721748553598,0.05,66653.0,66642.0,0.0623]
[1721748553731,0.05,66657.0,66656.0,0.450072]
[1721748553896,0.49093655,66657.0,66656.0,0.150024]
[1721748554092,0.05,66655.0,66642.0,0.0623]
[1721748554307,0.002794,66654.0,66653.0,0.450091]
[1721748554513,0.052794,66655.0,66651.0,0.150034]
[1721748554711,0.052794,66655.0,66642.0,0.0623]
[1721748554966,0.011,66660.0,66657.0,0.300043]
[1721748555172,0.011,66660.0,66659.0,0.450051]
[1721748555370,0.011,66660.0,66659.0,0.75721684]
[1721748555511,0.00578896,66680.0,66659.0,0.75721684]
[1721748555512,0.05,66666.0,66663.0,0.75004]
[1721748555717,0.05,66667.0,66659.0,0.00713184]
[1721748555920,0.05,66668.0,66667.0,0.149999]
[1721748556127,0.05,66676.0,66675.0,0.299962]
[1721748556329,0.05,66676.0,66675.0,0.15708758]
[1721748556570,0.19701991,66676.0,66675.0,0.00710658]
[1721748556772,0.05,66670.0,66669.0,0.299986]
[1721748556984,0.05,66670.0,66669.0,0.149994]
[1721748557392,0.05,66670.0,66669.0,0.749972]
[1721748558198,0.05,66670.0,66669.0,0.449983]
[1721748558545,0.05,66664.0,66660.0,0.0601]
[1721748558656,0.05,66664.0,66663.0,0.450024]
[1721748558881,0.05,66665.0,66664.0,0.450018]
[1721748559087,0.05,66659.0,66658.0,0.300036]
[1721748559286,0.05,66659.0,66658.0,0.750094]
[1721748559915,0.05,66659.0,66658.0,1.050133]
[1721748560148,0.05,66661.0,66660.0,0.750075]
[1721748560589,0.00578896,66677.0,66652.0,1.5]
[1721748560590,0.05,66664.0,66663.0,0.450024]
[1721748560790,0.05,66664.0,66663.0,0.75004]
[1721748560996,0.05,66664.0,66652.0,1.5]
[1721748560997,0.05,66673.0,66652.0,1.5]
[1721748561197,0.05,66673.0,66672.0,0.149988]
[1721748561409,0.29701991,66673.0,66672.0,0.149988]
[1721748561604,0.29701991,66673.0,66672.0,0.74994]
[1721748561811,0.29701991,66673.0,66672.0,0.149988]
[1721748562006,0.29701991,66673.0,66672.0,0.449964]
[1721748562399,0.05,66665.0,66653.0,0.123]
[1721748562671,0.05,66660.0,66659.0,0.450051]
[1721748562869,0.05,66656.0,66655.0,0.150026]
[1721748563079,0.1,66653.0,66652.0,0.150033]
[1721748563296,0.1,66653.0,66647.0,0.300087]
[1721748563297,0.05,66649.0,66647.0,0.300087]
[1721748563504,0.1,66652.0,66647.0,0.300087]
[1721748563505,0.05,66648.0,66647.0,0.150042]
[1721748563718,0.05,66646.0,66642.0,0.36241]
[1721748563928,0.05,66642.0,66641.0,0.150056]
[1721748564148,0.1,66643.0,66642.0,0.150055]
[1721748564149,0.05,66643.0,66642.0,0.150055]
[1721748564581,0.05,66643.0,66640.0,0.150059]
[1721748564809,0.1,66638.0,66637.0,0.150065]
[1721748565023,0.05,66636.0,66635.0,1.150071]
[1721748565518,0.15,66636.0,66635.0,1.0]
[1721748565740,0.46238841,66636.0,66635.0,1.0]
[1721748565948,0.31231941,66636.0,66635.0,1.0]
[1721748566171,0.31231941,66636.0,66600.0,0.01]
[1721748566172,0.05,66626.0,66600.0,0.01]
[1721748566381,0.1,66628.0,66579.0,0.1467]
[1721748566382,0.05,66590.0,66579.0,0.1467]
[1721748566586,0.05,66594.0,66579.0,0.1467]
[1721748566792,0.05,66603.0,66592.0,0.300335]
[1721748566998,0.002794,66616.0,66579.0,0.1467]
[1721748566999,0.05,66598.0,66579.0,0.1467]
[1721748567212,0.05,66626.0,66579.0,0.1467]
[1721748567213,0.05,66613.0,66583.0,0.3123]
[1721748567420,0.14701991,66636.0,66583.0,0.3123]
[1721748567421,0.44373055,66612.0,66611.0,0.30025]
[1721748567631,0.05,66616.0,66610.0,0.0647]
[1721748567882,0.05,66616.0,66615.0,0.450348]
[1721748568300,0.05,66625.0,66624.0,0.150096]
[1721748568514,0.05,66619.0,66618.0,0.750547]
[1721748568722,0.05,66615.0,66610.0,0.0647]
[1721748568930,0.05,66613.0,66612.0,0.150122]
[1721748569154,0.05,66613.0,66612.0,0.450369]
[1721748569368,0.05,66613.0,66608.0,0.082]
[1721748569569,0.15,66605.0,66604.0,0.3755]
[1721748569771,0.19701991,66605.0,66604.0,0.3755]
[1721748569982,0.05,66601.0,66592.0,0.082]
[1721748570188,0.05,66601.0,66600.0,0.45045]
[1721748570390,0.05,66601.0,66592.0,0.082]
[1721748570391,0.05,66603.0,66592.0,0.082]
[1721748570642,0.05,66609.0,66608.0,0.450396]
[1721748570845,0.14701991,66615.0,66599.0,0.7335]
[1721748570846,0.05,66606.0,66605.0,0.150138]
[1721748571063,0.05,66606.0,66599.0,0.7335]
[1721748571064,0.15,66600.0,66599.0,0.7335]
[1721748571270,0.29701991,66600.0,66599.0,0.7335]
[1721748571467,0.29701991,66600.0,66590.0,0.300345]
[1721748571468,0.05,66591.0,66590.0,0.300345]
[1721748571703,0.05,66590.0,66589.0,0.45996064]
[1721748571935,0.05,66596.0,66595.0,0.150161]
[1721748572139,0.05,66596.0,66595.0,0.450483]
[1721748572347,0.05,66593.0,66592.0,0.150168]
[1721748572555,0.05,66599.0,66598.0,0.450463]
[1721748572765,0.05,66599.0,66589.0,0.00943764]
[1721748572766,0.05,66590.0,66589.0,0.00943764]
[1721748573000,0.05,66590.0,66589.0,0.15961164]
[1721748573418,0.05,66590.0,66589.0,0.45996064]
[1721748573628,0.05,66590.0,66589.0,0.15017401]
[1721748573836,0.29701991,66590.0,66589.0,1e-08]
[1721748574071,1.04788191,66590.0,66589.0,1e-08]
[1721748574512,0.600564,66583.0,66582.0,0.0001]
[1721748574713,0.74758391,66583.0,66582.0,0.0001]
[1721748574934,0.29701991,66583.0,66582.0,0.0001]
[1721748575143,0.74758391,66583.0,66582.0,0.0001]
[1721748575347,1.99361191,66583.0,66582.0,0.0001]
[1721748575588,0.60066,66569.0,66563.0,0.24156336]
[1721748575821,1.48211533,66569.0,66563.0,0.24156336]
[1721748576037,1.57145141,66569.0,66563.0,0.24156336]
[1721748576252,0.37050933,66569.0,66563.0,0.24156336]
[1721748576461,0.82116933,66569.0,66563.0,0.24156336]
[1721748576668,1.17160933,66569.0,66563.0,0.24156336]
[1721748577089,0.650693,66564.0,66563.0,0.24156336]
[1721748577296,0.79771291,66564.0,66563.0,0.24156336]
[1721748577509,1.19817491,66564.0,66563.0,0.24156336]
[1721748577715,1.49863691,66564.0,66563.0,0.24156336]
[1721748577934,1.99606156,66564.0,66563.0,0.24156336]
[1721748578182,1.99606156,66564.0,66540.0,0.44093655]
[1721748578183,0.951302,66551.0,66540.0,0.44093655]
[1721748578393,1.62963233,66551.0,66541.0,0.44093655]
[1721748578621,0.15,66523.0,66504.0,0.300731]
[1721748578836,0.15,66523.0,66502.0,0.44093655]
[1721748578837,0.05,66507.0,66502.0,0.44093655]
[1721748579038,0.05,66501.0,66500.0,0.40948106]
[1721748579242,0.04973516,66501.0,66500.0,0.23370699]
[1721748579453,0.04973516,66506.0,66500.0,0.23370699]
[1721748579721,0.14701991,66523.0,66500.0,0.23370699]
[1721748579722,0.04973516,66515.0,66501.0,0.0641]
[1721748579928,0.03573516,66527.0,66526.0,0.450951]
[1721748580358,0.03573516,66531.0,66514.0,0.01426484]
[1721748580577,0.03573516,66537.0,66536.0,0.751472]
[1721748581025,0.03573516,66537.0,66536.0,0.450883]
[1721748581237,0.08573516,66526.0,66525.0,0.150319]
[1721748581443,0.13573516,66526.0,66525.0,0.450956]
[1721748582502,0.03573516,66526.0,66525.0,0.450956]
[1721748582676,0.03573516,66522.0,66521.0,0.751638]
[1721748582884,0.03573516,66526.0,66525.0,0.300638]
[1721748583049,0.03573516,66526.0,66525.0,1.052233]
[1721748583250,0.03573516,66529.0,66528.0,1.052187]
[1721748583869,0.03573516,66534.0,66520.0,0.07348942]
[1721748584078,0.16758942,66562.0,66520.0,0.07348942]
[1721748584079,0.03573516,66538.0,66535.0,0.450889]
[1721748584278,0.03573516,66538.0,66537.0,0.75146]
[1721748584530,0.13573516,66539.0,66538.0,0.75145]
[1721748584776,0.28275507,66539.0,66538.0,0.75145]
[1721748584931,0.18275507,66539.0,66538.0,0.75145]
[1721748585131,0.18275507,66539.0,66538.0,1.05933834]
[1721748585507,0.28275507,66539.0,66538.0,0.75875834]
[1721748585708,0.28275507,66539.0,66538.0,0.45817834]
[1721748585709,0.03573516,66539.0,66538.0,0.45817834]
[1721748585902,0.03573516,66539.0,66538.0,0.15759834]
[1721748586203,0.03573516,66539.0,66538.0,0.75875834]
[1721748586408,0.13573516,66539.0,66538.0,0.75875834]
[1721748586610,0.03573516,66539.0,66538.0,0.75875834]
[1721748586901,0.13573516,66539.0,66538.0,0.75875834]
[1721748587148,0.28275507,66539.0,66538.0,0.15759834]
[1721748587351,0.28275507,66539.0,66538.0,0.75875834]
[1721748587557,0.18275507,66539.0,66538.0,0.75875834]
[1721748587764,0.28275507,66539.0,66538.0,0.75875834]
[1721748588811,0.03573516,66539.0,66538.0,0.75875834]
[1721748590184,0.18275507,66546.0,66545.0,0.75864163]
[1721748590383,0.28275507,66546.0,66545.0,0.75864163]
[1721748590597,0.13573516,66546.0,66545.0,0.75864163]
[1721748591048,0.28275507,66546.0,66545.0,0.75864163]
[1721748591254,0.03573516,66546.0,66545.0,0.75864163]
[1721748591425,0.18275507,66546.0,66545.0,0.75864163]
[1721748591621,0.28275507,66546.0,66545.0,0.45809363]
[1721748592250,0.28275507,66546.0,66545.0,0.15754563]
[1721748592653,0.28275507,66546.0,66545.0,0.00727163]
[1721748592860,0.28275507,66546.0,66545.0,0.15754563]
[1721748593034,0.31103058,66546.0,66545.0,0.00727163]
[1721748593238,0.28275507,66546.0,66545.0,0.00727163]
[1721748593451,0.1,66545.0,66544.0,0.150275]
[1721748593868,0.1,66545.0,66542.0,0.15028]
[1721748593869,0.13573516,66543.0,66542.0,0.15028]
[1721748594076,0.13573516,66543.0,66528.0,0.36711841]
[1721748594077,0.03573516,66531.0,66528.0,0.3585]
[1721748594276,0.03573516,66531.0,66530.0,1.052156]
[1721748594475,0.03573516,66534.0,66530.0,0.023]
[1721748594594,0.03573516,66534.0,66533.0,1.052107]
[1721748594794,0.08573516,66536.0,66535.0,0.751482]
[1721748595044,0.13573516,66536.0,66535.0,1.052075]
[1721748595307,0.13573516,66536.0,66535.0,0.751482]
[1721748595308,0.28275507,66536.0,66535.0,0.751482]
[1721748595500,0.13573516,66536.0,66535.0,1.052075]
[1721748595672,0.13573516,66536.0,66535.0,0.751482]
[1721748596078,0.05,66536.0,66535.0,0.751482]
[1721748596560,0.08573516,66537.0,66536.0,0.751472]
[1721748596702,0.13573516,66537.0,66536.0,1.052061]
[1721748597108,0.13573516,66537.0,66536.0,0.450883]
[1721748597354,0.13573516,66535.0,66534.0,0.450896]
[1721748597701,0.13573516,66535.0,66534.0,0.751494]
[1721748598557,0.13573516,66535.0,66528.0,0.3585]
[1721748598558,0.13573516,66529.0,66528.0,0.508812]
[1721748598732,0.13573516,66529.0,66528.0,0.809437]
[1721748598982,0.05,66529.0,66528.0,0.809437]
[1721748599188,0.13573516,66530.0,66529.0,0.75155]
[1721748599390,0.13573516,66530.0,66529.0,0.45093]
[1721748599717,0.13573516,66530.0,66529.0,0.75155]
[1721748600122,0.13573516,66530.0,66529.0,0.45093]
[1721748600522,0.13573516,66529.0,66528.0,0.3585]
[1721748600725,0.28275507,66529.0,66528.0,0.508812]
[1721748600931,0.28275507,66529.0,66510.0,0.07348942]
[1721748600932,0.13573516,66520.0,66519.0,0.0636]
[1721748601179,0.13573516,66520.0,66496.0,0.08775426]
[1721748601180,0.03573516,66522.0,66512.0,0.0647]
[1721748601387,0.03573516,66522.0,66521.0,0.75164]
[1721748601597,0.13573516,66522.0,66521.0,0.150328]
[1721748601800,0.13573516,66522.0,66514.0,0.300686]
[1721748601801,0.13573516,66519.0,66518.0,0.150334]
[1721748601998,0.03573516,66518.0,66517.0,0.530612]
[1721748602157,0.03573516,66518.0,66510.0,0.00863312]
[1721748602158,0.03573516,66512.0,66510.0,0.00863312]
[1721748602358,0.13573516,66509.0,66508.0,0.451072]
[1721748602579,0.13573516,66509.0,66508.0,0.150357]
[1721748602923,0.03573516,66509.0,66508.0,0.451072]
[1721748603116,0.14701991,66517.0,66500.0,0.24255892]
[1721748603117,0.03573516,66511.0,66510.0,0.451059]
[1721748603326,0.03573516,66511.0,66504.0,0.30073]
[1721748603327,0.13573516,66505.0,66504.0,0.451099]
[1721748603519,0.13573516,66505.0,66504.0,0.150366]
[1721748604258,0.13573516,66501.0,66500.0,0.23370699]
[1721748604457,0.13573516,66501.0,66500.0,0.38408199]
[1721748604458,0.03573516,66501.0,66500.0,0.38408199]
[1721748604803,0.40172859,66501.0,66500.0,0.23370699]
[1721748605016,1.30963525,66501.0,66500.0,0.23370699]
[1721748605416,1.29606173,66501.0,66500.0,0.23370699]
[1721748605743,1.82164405,66501.0,66500.0,0.23370699]
[1721748605948,1.77164405,66501.0,66500.0,0.23370699]
[1721748606156,1.77164532,66501.0,66500.0,0.23370699]
[1721748606385,0.69456773,66501.0,66500.0,0.23220039]
[1721748606590,0.94310507,66501.0,66500.0,0.23220039]
[1721748606787,0.7983893,66501.0,66500.0,0.23220039]
[1721748606990,0.93882368,66501.0,66500.0,0.23220039]
[1721748607115,1.43648768,66501.0,66500.0,0.23220039]
[1721748607324,1.43648768,66501.0,66478.0,0.009306]
[1721748607325,1.30625181,66501.0,66478.0,0.009306]
[1721748607525,1.61740249,66492.0,66478.0,0.009306]
[1721748607991,1.20821449,66492.0,66478.0,0.009306]
[1721748608617,0.28275507,66492.0,66478.0,0.009306]
[1721748608819,0.43883007,66492.0,66481.0,0.150417]
[1721748609030,0.43883007,66492.0,66478.0,0.073206]
[1721748609031,0.46710558,66492.0,66478.0,0.009306]
[1721748609234,0.89001207,66492.0,66478.0,0.009306]
[1721748609446,0.43883007,66492.0,66478.0,0.009306]
[1721748609663,0.23275507,66492.0,66491.0,0.451288]
[1721748609916,0.03573516,66492.0,66491.0,0.0001]
[1721748610141,0.28275507,66492.0,66491.0,0.0001]
[1721748610353,0.28275507,66492.0,66491.0,0.451288]
[1721748610560,0.03573516,66492.0,66491.0,0.77508]
[1721748610774,0.03573516,66493.0,66492.0,0.451182]
[1721748610983,0.03573516,66493.0,66492.0,0.474182]
[1721748611233,0.13573516,66492.0,66491.0,0.0001]
[1721748611452,0.76520754,66492.0,66491.0,0.0001]
[1721748611667,0.1584,66507.0,66491.0,0.0001]
[1721748611668,0.03573516,66504.0,66503.0,0.150369]
[1721748611869,0.08573516,66508.0,66507.0,0.45108]
[1721748612043,0.24178537,66508.0,66507.0,0.8338]
[1721748612245,0.19178537,66508.0,66507.0,1.13452]
[1721748612465,0.03573516,66513.0,66512.0,0.300697]
[1721748612669,0.03573516,66515.0,66514.0,0.75172]
[1721748612873,0.08573516,66517.0,66516.0,0.751697]
[1721748613059,0.03573516,66524.0,66523.0,0.150323]
[1721748613276,0.03573516,66524.0,66514.0,0.0663]
[1721748613277,0.03573516,66525.0,66524.0,0.150321]
[1721748613617,0.03573516,66528.0,66527.0,0.751572]
[1721748614045,0.03573516,66528.0,66527.0,0.774572]
[1721748614187,0.03573516,66528.0,66527.0,0.852872]
[1721748614388,0.00084,66530.0,66529.0,0.45093]
[1721748614588,0.00084,66530.0,66529.0,1.07517]
[1721748615469,0.03657516,66530.0,66529.0,1.07517]
[1721748616096,0.00084,66530.0,66529.0,1.07517]
[1721748616616,0.00084,66530.0,66529.0,1.37579]
[1721748616831,0.00084,66530.0,66529.0,1.07517]
[1721748617031,0.03657516,66530.0,66529.0,1.07517]
[1721748617565,0.03657516,66530.0,66529.0,0.77455]
[1721748617788,0.00084,66530.0,66529.0,0.77455]
[1721748619461,0.00084,66530.0,66529.0,1.07517]
[1721748620512,0.03573516,66546.0,66530.0,0.300614]
[1721748620715,0.03573516,66546.0,66545.0,0.450822]
[1721748620915,0.03573516,66546.0,66545.0,1.051918]
[1721748621135,0.19170102,66546.0,66545.0,1.074918]
[1721748621333,0.08573516,66551.0,66550.0,0.150262]
[1721748621658,0.10267623,66566.0,66550.0,0.150262]
[1721748621659,0.03573516,66553.0,66552.0,0.450774]
[1721748621859,0.03573516,66553.0,66552.0,0.77429]
[1721748622479,0.08573516,66556.0,66555.0,0.300503]
[1721748622717,0.09006726,66573.0,66555.0,0.300503]
[1721748622718,0.03573516,66567.0,66566.0,0.751132]
[1721748622842,0.07425438,66584.0,66556.0,0.300498]
[1721748622843,0.03573516,66570.0,66569.0,0.45066]
[1721748623041,0.03573516,66572.0,66571.0,0.450646]
[1721748623237,0.07348942,66586.0,66574.0,0.751042]
[1721748623238,0.03573516,66575.0,66574.0,0.751042]
[1721748623462,0.03573516,66575.0,66574.0,0.774042]
[1721748623669,0.14701991,66584.0,66575.0,0.450619]
[1721748623670,0.08573516,66576.0,66575.0,0.450619]
[1721748623929,0.00927,66597.0,66575.0,0.023]
[1721748623930,0.03573516,66580.0,66575.0,0.023]
[1721748624138,0.03573516,66581.0,66580.0,0.450585]
[1721748624348,0.08573516,66581.0,66580.0,0.750975]
[1721748624547,0.08573516,66581.0,66580.0,0.873975]
[1721748624548,0.03573516,66581.0,66580.0,0.873975]
[1721748624741,0.03573516,66576.0,66571.0,0.1385]
[1721748624949,0.03573516,66575.0,66574.0,0.150208]
[1721748625157,0.03573516,66581.0,66580.0,0.750975]
[1721748625363,0.03573516,66581.0,66580.0,1.074365]
[1721748625974,0.03573516,66589.0,66588.0,0.150177]
[1721748626187,0.03573516,66589.0,66588.0,0.538031]
[1721748626403,0.08573516,66591.0,66590.0,0.450517]
[1721748626619,0.03573516,66591.0,66590.0,1.074207]
[1721748626826,0.03573516,66591.0,66590.0,0.773862]
[1721748627026,0.03573516,66591.0,66590.0,0.473517]
[1721748627161,0.13573516,66591.0,66590.0,0.473517]
[1721748627362,0.13573516,66589.0,66588.0,0.1454]
[1721748627602,0.03573516,66585.0,66584.0,0.300371]
[1721748627808,0.03573516,66585.0,66584.0,0.773929]
[1721748628009,0.03573516,66587.0,66586.0,0.750907]
[1721748628209,0.03573516,66587.0,66586.0,0.773907]
[1721748628379,0.08573516,66587.0,66586.0,1.07427]
[1721748628580,0.03573516,66587.0,66586.0,1.07427]
[1721748628783,0.00847,66597.0,66586.0,0.61465647]
[1721748628997,0.00847,66597.0,66596.0,0.450477]
[1721748629232,0.00847,66597.0,66596.0,1.06094632]
[1721748629437,0.00847,66597.0,66596.0,1.08394632]
[1721748629642,0.00847,66597.0,66596.0,1.210813]
[1721748629840,0.00847,66597.0,66596.0,1.2431633]
[1721748630044,0.05,66610.0,66599.0,1.351368]
[1721748630245,0.05,66610.0,66599.0,1.374368]
[1721748630447,0.00299496,66623.0,66599.0,1.374368]
[1721748630448,0.1,66613.0,66599.0,1.374368]
[1721748630814,0.300161,66631.0,66599.0,2.574064]
[1721748630815,0.05,66609.0,66599.0,2.574064]
[1721748630928,0.300185,66626.0,66599.0,2.574064]
[1721748630929,0.05,66601.0,66599.0,0.77376]
[1721748631379,0.1,66611.0,66599.0,1.074064]
[1721748631594,0.1,66607.0,66599.0,1.074064]
[1721748631767,0.1,66603.0,66599.0,0.77376]
[1721748631964,0.300209,66621.0,66599.0,0.473456]
[1721748631965,0.10084,66600.0,66599.0,0.473456]
[1721748632454,0.00084,66600.0,66599.0,0.473456]
[1721748632628,0.00084,66600.0,66599.0,0.77376]
[1721748632977,0.00084,66600.0,66599.0,1.074064]
[1721748633177,0.00084,66600.0,66599.0,0.77376]
[1721748633581,0.00084,66600.0,66596.0,0.1367]
[1721748633582,0.1,66598.0,66596.0,0.1367]
[1721748633785,0.1,66597.0,66596.0,0.1367]
[1721748634039,0.00084,66600.0,66596.0,0.1367]
[1721748634040,0.1,66599.0,66596.0,0.1367]
[1721748634248,0.00084,66600.0,66599.0,0.450456]
[1721748635086,0.00084,66600.0,66599.0,0.473456]
[1721748635286,0.00084,66600.0,66584.0,0.43602013]
[1721748635287,0.1,66591.0,66590.0,0.150172]
[1721748635492,0.1,66591.0,66588.0,0.0628]
[1721748635493,0.24701991,66599.0,66588.0,0.0628]
[1721748635707,0.00084,66600.0,66588.0,0.0628]
[1721748635708,0.00084,66600.0,66599.0,0.450456]
[1721748636112,0.00084,66600.0,66599.0,0.75076]
[1721748636784,0.00084,66600.0,66599.0,0.77376]
[1721748638651,0.002794,66622.0,66621.0,0.450307]
[1721748638857,0.002794,66622.0,66600.0,0.05]
[1721748638858,0.1,66615.0,66606.0,0.2732]
[1721748639081,0.46434296,66633.0,66601.0,1.5]
[1721748639082,0.1,66607.0,66601.0,1.5]
[1721748639287,0.14701991,66614.0,66599.0,0.17202262]
[1721748639288,0.1,66608.0,66607.0,0.450402]
[1721748639716,0.1,66604.0,66599.0,0.1383]
[1721748639916,0.1,66601.0,66600.0,0.45045]
[1721748640140,0.1,66604.0,66603.0,0.150143]
[1721748640344,0.1,66603.0,66599.0,0.1383]
[1721748640555,0.14701991,66614.0,66599.0,0.1383]
[1721748640556,0.1,66601.0,66599.0,0.1383]
[1721748640789,0.1,66601.0,66600.0,0.15015]
[1721748640989,0.1,66601.0,66600.0,0.17315]
[1721748641195,0.15001487,66614.0,66603.0,0.150143]
[1721748641196,0.1,66604.0,66603.0,0.150143]
[1721748641657,0.1,66604.0,66603.0,0.450429]
[1721748641863,0.1,66604.0,66603.0,0.750715]
[1721748642065,0.1,66604.0,66603.0,0.450429]
[1721748642649,0.1,66604.0,66603.0,0.750715]
[1721748642850,0.1,66606.0,66605.0,0.750692]
[1721748643026,0.05,66607.0,66606.0,0.150136]
[1721748643267,0.05,66607.0,66606.0,0.750682]
[1721748643405,0.05,66607.0,66606.0,0.773682]
[1721748644084,0.05,66608.0,66607.0,0.450402]
[1721748644230,0.1,66616.0,66607.0,0.023]
[1721748644430,0.1,66616.0,66615.0,0.450348]
[1721748644679,0.1,66622.0,66621.0,0.150102]
[1721748644883,0.1,66622.0,66621.0,0.450307]
[1721748645089,0.1,66622.0,66621.0,0.150102]
[1721748645299,0.00299496,66631.0,66606.0,0.023]
[1721748645300,0.1,66619.0,66606.0,0.023]
[1721748645492,0.1,66619.0,66618.0,0.450328]
[1721748645698,0.05,66608.0,66607.0,0.150134]
[1721748645904,0.05,66608.0,66607.0,0.473402]
[1721748646057,0.1,66611.0,66610.0,0.150127]
[1721748646258,0.1,66611.0,66610.0,0.450382]
[1721748646647,0.1,66611.0,66610.0,0.750637]
[1721748647762,0.1,66615.0,66614.0,0.150118]
[1721748647911,0.14701991,66619.0,66607.0,0.173134]
[1721748647912,0.05,66608.0,66607.0,0.173134]
[1721748648112,0.1,66608.0,66607.0,0.173134]
[1721748648323,0.1,66608.0,66607.0,0.473402]
[1721748648498,0.14701991,66619.0,66607.0,0.473402]
[1721748648499,0.1,66611.0,66607.0,0.323268]
[1721748648704,0.1,66610.0,66609.0,0.150129]
[1721748649150,0.05,66601.0,66600.0,0.42335]